[Event "Titled Tuesday Blitz March 29 Early 2022"]
[White "Sanchez Alvares, Kelvin Antonio"]
[Black "Majdan, Joanna"]
[WhiteFideId "3906680"]
[BlackFideId "1121979"]
[WhiteElo "2193"]
[BlackElo "2234"]
[Result "0-1"]
[Round "06"]
[TimeControl "180+1"]
[Date "2022.03.30"]
[WhiteClock "0:00:02"]
[BlackClock "0:00:10"]

1. e4 {[%clk 0:03:00]}  c5 {[%clk 0:02:56]} 2. Nf3 {[%clk 0:03:00]}  e6 {[%clk 0:02:56]} 3. d4 {[%clk 0:02:59]}  d5 {[%clk 0:02:56]} 4. exd5 {[%clk 0:02:52]}  exd5 {[%clk 0:02:57]} 5. Bb5+ {[%clk 0:02:51]}  Nc6 {[%clk 0:02:56]} 6. O-O {[%clk 0:02:48]}  Bd6 {[%clk 0:02:56]} 7. dxc5 {[%clk 0:02:46]}  Bxc5 {[%clk 0:02:56]} 8. Nbd2 {[%clk 0:02:43]}  Ne7 {[%clk 0:02:56]} 9. Nb3 {[%clk 0:02:43]}  Bb6 {[%clk 0:02:56]} 10. h3 {[%clk 0:02:42]}  O-O {[%clk 0:02:56]} 11. c3 {[%clk 0:02:41]}  Qd6 {[%clk 0:02:56]} 12. Re1 {[%clk 0:02:30]}  Bxh3 {[%clk 0:02:42]} 13. gxh3 {[%clk 0:02:20]}  Qg3+ {[%clk 0:02:43]} 14. Kh1 {[%clk 0:02:20]}  Bxf2 {[%clk 0:02:32]} 15. Rf1 {[%clk 0:01:25]}  Nf5 {[%clk 0:02:05]} 16. Bf4 {[%clk 0:01:07]}  Qxh3+ {[%clk 0:01:52]} 17. Nh2 {[%clk 0:01:06]}  Bg3 {[%clk 0:01:45]} 18. Qd2 {[%clk 0:00:58]}  Rfe8 {[%clk 0:01:18]} 19. Bd3 {[%clk 0:00:15]}  Bxf4 {[%clk 0:01:06]} 20. Bxf5 {[%clk 0:00:13]}  Qxf1+ {[%clk 0:00:59]} 21. Rxf1 {[%clk 0:00:11]}  Bxd2 {[%clk 0:01:00]} 22. Nxd2 {[%clk 0:00:12]}  g6 {[%clk 0:00:58]} 23. Bd3 {[%clk 0:00:10]}  Re3 {[%clk 0:00:55]} 24. Bc2 {[%clk 0:00:09]}  Re2 {[%clk 0:00:52]} 25. Nhf3 {[%clk 0:00:08]}  Rae8 {[%clk 0:00:52]} 26. Bd3 {[%clk 0:00:08]}  R2e3 {[%clk 0:00:52]} 27. Bb5 {[%clk 0:00:08]}  a6 {[%clk 0:00:51]} 28. Bxc6 {[%clk 0:00:08]}  bxc6 {[%clk 0:00:52]} 29. Nd4 {[%clk 0:00:07]}  c5 {[%clk 0:00:52]} 30. N4b3 {[%clk 0:00:07]}  Re2 {[%clk 0:00:45]} 31. Rd1 {[%clk 0:00:06]}  R8e3 {[%clk 0:00:31]} 32. Kg1 {[%clk 0:00:06]}  Rg3+ {[%clk 0:00:29]} 33. Kf1 {[%clk 0:00:06]}  Rgg2 {[%clk 0:00:26]} 34. Nb1 {[%clk 0:00:03]}  Rxb2 {[%clk 0:00:20]} 35. N3d2 {[%clk 0:00:03]}  Rh2 {[%clk 0:00:19]} 36. Kg1 {[%clk 0:00:03]}  Re2 {[%clk 0:00:18]} 37. Kf1 {[%clk 0:00:03]}  Re5 {[%clk 0:00:18]} 38. Nb3 {[%clk 0:00:03]}  Rxa2 {[%clk 0:00:17]} 39. Nxc5 {[%clk 0:00:04]}  h5 {[%clk 0:00:17]} 40. Nd3 {[%clk 0:00:04]}  Rf5+ {[%clk 0:00:17]} 41. Kg1 {[%clk 0:00:03]}  h4 {[%clk 0:00:17]} 42. Nb4 {[%clk 0:00:03]}  Rb2 {[%clk 0:00:16]} 43. Nxd5 {[%clk 0:00:03]}  Kg7 {[%clk 0:00:15]} 44. Ne3 {[%clk 0:00:03]}  Rg5+ {[%clk 0:00:15]} 45. Kh1 {[%clk 0:00:03]}  h3 {[%clk 0:00:15]} 46. Nf1 {[%clk 0:00:03]}  Rgg2 {[%clk 0:00:15]} 47. Nbd2 {[%clk 0:00:02]}  Re2 {[%clk 0:00:14]} 48. Kg1 {[%clk 0:00:02]}  g5 {[%clk 0:00:14]} 49. Nf3 {[%clk 0:00:01]}  g4 {[%clk 0:00:14]} 50. Nd4 {[%clk 0:00:01]}  Rg2+ {[%clk 0:00:12]} 51. Kh1 {[%clk 0:00:02]}  Kg6 {[%clk 0:00:12]} 52. Ne3 {[%clk 0:00:02]}  Rg3 {[%clk 0:00:10]} 53. Nef5 {[%clk 0:00:02]}  Rxc3 {[%clk 0:00:10]} 0-1


[Site "https://www.chess.com"]

[Event "Titled Tuesday Blitz March 29 Early 2022"]
[White "Sapunov, Evgeny"]
[Black "Zhigalko, Sergei"]
[WhiteFideId "4126661"]
[BlackFideId "13502956"]
[WhiteElo "2470"]
[BlackElo "2662"]
[Result "1-0"]
[Round "06"]
[TimeControl "180+1"]
[Date "2022.03.29"]
[WhiteClock "0:00:16"]
[BlackClock "0:00:01"]

1. c4 {[%clk 0:03:00]}  e5 {[%clk 0:02:59]} 2. Nf3 {[%clk 0:03:00]}  e4 {[%clk 0:02:56]} 3. Nd4 {[%clk 0:03:00]}  Nf6 {[%clk 0:02:56]} 4. Nc2 {[%clk 0:03:00]}  Nc6 {[%clk 0:02:55]} 5. Nc3 {[%clk 0:03:00]}  Bc5 {[%clk 0:02:53]} 6. g3 {[%clk 0:03:00]}  O-O {[%clk 0:02:54]} 7. Bg2 {[%clk 0:03:01]}  Re8 {[%clk 0:02:54]} 8. O-O {[%clk 0:03:01]}  d6 {[%clk 0:02:54]} 9. Ne3 {[%clk 0:03:02]}  a5 {[%clk 0:02:47]} 10. b3 {[%clk 0:02:59]}  Qe7 {[%clk 0:02:27]} 11. d3 {[%clk 0:02:58]}  Bd4 {[%clk 0:02:18]} 12. Ned5 {[%clk 0:02:47]}  Nxd5 {[%clk 0:02:12]} 13. Nxd5 {[%clk 0:02:47]}  Qd8 {[%clk 0:02:10]} 14. Rb1 {[%clk 0:02:46]}  exd3 {[%clk 0:02:07]} 15. Qxd3 {[%clk 0:02:46]}  Bg4 {[%clk 0:01:57]} 16. e3 {[%clk 0:02:38]}  Bc5 {[%clk 0:01:43]} 17. Bb2 {[%clk 0:02:30]}  Ne5 {[%clk 0:01:43]} 18. Qc3 {[%clk 0:02:30]}  c6 {[%clk 0:01:43]} 19. Nf4 {[%clk 0:02:22]}  Qg5 {[%clk 0:01:36]} 20. h3 {[%clk 0:02:19]}  Bf3 {[%clk 0:01:25]} 21. h4 {[%clk 0:02:00]}  Qh6 {[%clk 0:01:17]} 22. Bxf3 {[%clk 0:01:58]}  Nxf3+ {[%clk 0:01:17]} 23. Kg2 {[%clk 0:01:59]}  Bb4 {[%clk 0:01:02]} 24. Qxg7+ {[%clk 0:01:48]}  Qxg7 {[%clk 0:01:02]} 25. Bxg7 {[%clk 0:01:49]}  Nd2 {[%clk 0:00:58]} 26. Bb2 {[%clk 0:01:45]}  h6 {[%clk 0:00:46]} 27. Rbd1 {[%clk 0:01:41]}  Nxf1 {[%clk 0:00:46]} 28. Kxf1 {[%clk 0:01:41]}  Bc5 {[%clk 0:00:40]} 29. Bc3 {[%clk 0:01:38]}  Re4 {[%clk 0:00:37]} 30. Nh5 {[%clk 0:01:34]}  Re6 {[%clk 0:00:37]} 31. Kg2 {[%clk 0:01:29]}  Bb4 {[%clk 0:00:31]} 32. Bb2 {[%clk 0:01:28]}  Bc5 {[%clk 0:00:32]} 33. Bc3 {[%clk 0:01:24]}  Bb4 {[%clk 0:00:32]} 34. Bb2 {[%clk 0:01:19]}  Bc5 {[%clk 0:00:23]} 35. a4 {[%clk 0:00:49]}  Ra6 {[%clk 0:00:20]} 36. Kf3 {[%clk 0:00:45]}  Rb6 {[%clk 0:00:20]} 37. Rd3 {[%clk 0:00:46]}  Kf8 {[%clk 0:00:14]} 38. Nf4 {[%clk 0:00:43]}  Re8 {[%clk 0:00:12]} 39. g4 {[%clk 0:00:44]}  Ke7 {[%clk 0:00:07]} 40. h5 {[%clk 0:00:43]}  Rg8 {[%clk 0:00:07]} 41. Ne2 {[%clk 0:00:42]}  Rg5 {[%clk 0:00:02]} 42. Ng3 {[%clk 0:00:42]}  Ke6 {[%clk 0:00:03]} 43. e4 {[%clk 0:00:39]}  Ra6 {[%clk 0:00:02]} 44. Bc1 {[%clk 0:00:37]}  Ra8 {[%clk 0:00:01]} 45. Nf5 {[%clk 0:00:34]}  Rh8 {[%clk 0:00:02]} 46. Nxh6 {[%clk 0:00:27]}  Rg7 {[%clk 0:00:02]} 47. Nf5 {[%clk 0:00:27]}  Rgh7 {[%clk 0:00:02]} 48. h6 {[%clk 0:00:27]}  Rd8 {[%clk 0:00:02]} 49. Bf4 {[%clk 0:00:23]}  f6 {[%clk 0:00:02]} 50. Kg3 {[%clk 0:00:17]}  Rdd7 {[%clk 0:00:03]} 51. f3 {[%clk 0:00:17]}  Rd8 {[%clk 0:00:03]} 52. Kh4 {[%clk 0:00:18]}  d5 {[%clk 0:00:01]} 53. Kh5 {[%clk 0:00:16]} 1-0


[Site "https://www.chess.com"]

[Event "Titled Tuesday Blitz March 29 Early 2022"]
[White "Sarana, Alexey"]
[Black "Shuvalova, Polina"]
[WhiteFideId "24133795"]
[BlackFideId "24171760"]
[WhiteElo "2666"]
[BlackElo "2355"]
[Result "1-0"]
[Round "06"]
[TimeControl "180+1"]
[Date "2022.03.29"]
[WhiteClock "0:01:24"]
[BlackClock "0:00:15"]

1. d4 {[%clk 0:03:00]}  Nf6 {[%clk 0:02:59]} 2. c4 {[%clk 0:03:01]}  e6 {[%clk 0:02:59]} 3. Nc3 {[%clk 0:03:01]}  Bb4 {[%clk 0:02:58]} 4. e3 {[%clk 0:03:00]}  O-O {[%clk 0:02:57]} 5. Bd3 {[%clk 0:03:00]}  d5 {[%clk 0:02:57]} 6. a3 {[%clk 0:03:01]}  Bxc3+ {[%clk 0:02:55]} 7. bxc3 {[%clk 0:03:02]}  dxc4 {[%clk 0:02:55]} 8. Bxc4 {[%clk 0:03:03]}  c5 {[%clk 0:02:56]} 9. Ne2 {[%clk 0:03:03]}  Qc7 {[%clk 0:02:52]} 10. Bd3 {[%clk 0:03:03]}  b6 {[%clk 0:02:51]} 11. e4 {[%clk 0:03:04]}  Ba6 {[%clk 0:02:46]} 12. O-O {[%clk 0:03:01]}  Bxd3 {[%clk 0:02:44]} 13. Qxd3 {[%clk 0:03:02]}  Rd8 {[%clk 0:02:43]} 14. Bg5 {[%clk 0:03:02]}  Nc6 {[%clk 0:02:34]} 15. Bxf6 {[%clk 0:02:53]}  gxf6 {[%clk 0:02:33]} 16. Rad1 {[%clk 0:02:50]}  cxd4 {[%clk 0:02:20]} 17. cxd4 {[%clk 0:02:50]}  Qe7 {[%clk 0:02:20]} 18. Qe3 {[%clk 0:02:41]}  Kh8 {[%clk 0:02:17]} 19. Nf4 {[%clk 0:02:36]}  Rg8 {[%clk 0:02:05]} 20. d5 {[%clk 0:02:36]}  Ne5 {[%clk 0:01:59]} 21. d6 {[%clk 0:02:35]}  Qd7 {[%clk 0:01:53]} 22. Nh5 {[%clk 0:02:34]}  Rg6 {[%clk 0:01:51]} 23. f4 {[%clk 0:02:34]}  Ng4 {[%clk 0:00:58]} 24. Qd3 {[%clk 0:02:32]}  Rh6 {[%clk 0:00:55]} 25. h3 {[%clk 0:02:17]}  Rxh5 {[%clk 0:00:51]} 26. hxg4 {[%clk 0:02:17]}  Rc5 {[%clk 0:00:49]} 27. Qd4 {[%clk 0:02:03]}  e5 {[%clk 0:00:42]} 28. fxe5 {[%clk 0:02:03]}  fxe5 {[%clk 0:00:41]} 29. Qf2 {[%clk 0:02:03]}  Qxg4 {[%clk 0:00:29]} 30. d7 {[%clk 0:02:00]}  Qg5 {[%clk 0:00:18]} 31. Qxf7 {[%clk 0:01:26]}  Rg8 {[%clk 0:00:15]} 32. Qxg8+ {[%clk 0:01:24]} 1-0


[Site "https://www.chess.com"]

[Event "Titled Tuesday Blitz March 29 Early 2022"]
[White "Simonovic, Miroslav"]
[Black "Legenia, Artem"]
[WhiteFideId "919152"]
[BlackFideId "14136945"]
[WhiteElo "2043"]
[BlackElo "1936"]
[Result "0-1"]
[Round "06"]
[TimeControl "180+1"]
[Date "2022.03.30"]
[WhiteClock "0:00:01"]
[BlackClock "0:01:32"]

1. d4 {[%clk 0:02:05]}  Nf6 {[%clk 0:02:55]} 2. Bg5 {[%clk 0:02:05]}  e6 {[%clk 0:02:55]} 3. e4 {[%clk 0:02:04]}  d5 {[%clk 0:02:54]} 4. Bxf6 {[%clk 0:02:02]}  Qxf6 {[%clk 0:02:54]} 5. e5 {[%clk 0:02:02]}  Qg6 {[%clk 0:02:53]} 6. f4 {[%clk 0:02:00]}  c5 {[%clk 0:02:53]} 7. c3 {[%clk 0:01:58]}  Nc6 {[%clk 0:02:52]} 8. Nf3 {[%clk 0:01:58]}  cxd4 {[%clk 0:02:52]} 9. cxd4 {[%clk 0:01:56]}  Bd7 {[%clk 0:02:49]} 10. a3 {[%clk 0:01:48]}  Qe4+ {[%clk 0:02:46]} 11. Be2 {[%clk 0:01:41]}  Qxf4 {[%clk 0:02:43]} 12. O-O {[%clk 0:01:41]}  Qe3+ {[%clk 0:02:43]} 13. Kh1 {[%clk 0:01:41]}  Be7 {[%clk 0:02:43]} 14. Nc3 {[%clk 0:01:36]}  O-O {[%clk 0:02:34]} 15. Rc1 {[%clk 0:01:19]}  Rac8 {[%clk 0:02:31]} 16. Nb5 {[%clk 0:01:13]}  a6 {[%clk 0:02:27]} 17. Rc3 {[%clk 0:01:13]}  Qh6 {[%clk 0:02:26]} 18. Nd6 {[%clk 0:01:13]}  Bxd6 {[%clk 0:02:26]} 19. exd6 {[%clk 0:01:14]}  Rfd8 {[%clk 0:02:26]} 20. Ne5 {[%clk 0:01:12]}  f6 {[%clk 0:02:25]} 21. Rh3 {[%clk 0:01:07]}  Qg5 {[%clk 0:02:23]} 22. Rg3 {[%clk 0:00:46]}  Qh4 {[%clk 0:02:22]} 23. Rg4 {[%clk 0:00:26]}  Qh6 {[%clk 0:02:21]} 24. Nxd7 {[%clk 0:00:16]}  Rxd7 {[%clk 0:02:21]} 25. Bd3 {[%clk 0:00:14]}  Rxd6 {[%clk 0:02:12]} 26. Qf3 {[%clk 0:00:12]}  Ne7 {[%clk 0:02:08]} 27. Qxf6 {[%clk 0:00:10]}  Qxf6 {[%clk 0:02:08]} 28. Rxf6 {[%clk 0:00:11]}  Rc1+ {[%clk 0:02:05]} 29. Rf1 {[%clk 0:00:11]}  Rxf1+ {[%clk 0:02:03]} 30. Bxf1 {[%clk 0:00:12]}  Rc6 {[%clk 0:02:03]} 31. Rf4 {[%clk 0:00:12]}  Rc2 {[%clk 0:01:59]} 32. h3 {[%clk 0:00:11]}  Rxb2 {[%clk 0:01:58]} 33. Kh2 {[%clk 0:00:11]}  Rd2 {[%clk 0:01:51]} 34. a4 {[%clk 0:00:07]}  Nf5 {[%clk 0:01:50]} 35. Rf3 {[%clk 0:00:02]}  Nxd4 {[%clk 0:01:48]} 36. Rc3 {[%clk 0:00:03]}  Nc6 {[%clk 0:01:47]} 37. Bd3 {[%clk 0:00:02]}  h6 {[%clk 0:01:43]} 38. Bb1 {[%clk 0:00:02]}  Kf7 {[%clk 0:01:42]} 39. Rb3 {[%clk 0:00:03]}  Na5 {[%clk 0:01:36]} 40. Rg3 {[%clk 0:00:02]}  b5 {[%clk 0:01:32]} 41. axb5 {[%clk 0:00:01]}  axb5 {[%clk 0:01:32]} 0-1


[Site "https://www.chess.com"]

[Event "Titled Tuesday Blitz March 29 Early 2022"]
[White "Tan, Jun Ying"]
[Black "Rustemov, Alexander"]
[WhiteFideId "5710413"]
[BlackFideId "4119002"]
[WhiteElo "1827"]
[BlackElo "2752"]
[Result "0-1"]
[Round "06"]
[TimeControl "180+1"]
[Date "2022.03.29"]
[WhiteClock "0:00:01"]
[BlackClock "0:00:09"]

1. d4 {[%clk 0:03:00]}  d5 {[%clk 0:02:56]} 2. c4 {[%clk 0:03:00]}  c6 {[%clk 0:02:56]} 3. Nf3 {[%clk 0:03:00]}  Nf6 {[%clk 0:02:53]} 4. e3 {[%clk 0:03:00]}  Bf5 {[%clk 0:02:52]} 5. Nc3 {[%clk 0:03:00]}  e6 {[%clk 0:02:50]} 6. Nh4 {[%clk 0:03:00]}  Be4 {[%clk 0:02:50]} 7. f3 {[%clk 0:02:59]}  Bg6 {[%clk 0:02:49]} 8. Qb3 {[%clk 0:03:00]}  Qc7 {[%clk 0:02:44]} 9. Bd2 {[%clk 0:02:59]}  Nbd7 {[%clk 0:02:36]} 10. O-O-O {[%clk 0:02:56]}  dxc4 {[%clk 0:02:10]} 11. Bxc4 {[%clk 0:02:52]}  b5 {[%clk 0:02:10]} 12. Be2 {[%clk 0:02:48]}  a6 {[%clk 0:02:09]} 13. Nxg6 {[%clk 0:02:33]}  hxg6 {[%clk 0:02:10]} 14. Kb1 {[%clk 0:02:16]}  c5 {[%clk 0:02:09]} 15. dxc5 {[%clk 0:02:12]}  Nxc5 {[%clk 0:02:03]} 16. Qc2 {[%clk 0:02:11]}  Rc8 {[%clk 0:02:03]} 17. Nxb5 {[%clk 0:02:01]}  axb5 {[%clk 0:01:58]} 18. Bxb5+ {[%clk 0:02:01]}  Ncd7 {[%clk 0:01:57]} 19. Qa4 {[%clk 0:01:57]}  Bc5 {[%clk 0:01:18]} 20. Bc3 {[%clk 0:01:46]}  Ke7 {[%clk 0:01:11]} 21. e4 {[%clk 0:01:26]}  Ra8 {[%clk 0:01:05]} 22. Qc2 {[%clk 0:01:20]}  Rhc8 {[%clk 0:01:00]} 23. Rd2 {[%clk 0:01:00]}  Qb7 {[%clk 0:00:41]} 24. a4 {[%clk 0:00:52]}  Nb6 {[%clk 0:00:34]} 25. Rhd1 {[%clk 0:00:37]}  Kf8 {[%clk 0:00:34]} 26. g4 {[%clk 0:00:33]}  Be7 {[%clk 0:00:29]} 27. g5 {[%clk 0:00:27]}  Ne8 {[%clk 0:00:29]} 28. Qb3 {[%clk 0:00:21]}  Qc7 {[%clk 0:00:24]} 29. Bd4 {[%clk 0:00:18]}  Rcb8 {[%clk 0:00:17]} 30. Bxe8 {[%clk 0:00:10]}  Nxa4 {[%clk 0:00:14]} 31. Qe3 {[%clk 0:00:04]}  Kxe8 {[%clk 0:00:11]} 32. Bxg7 {[%clk 0:00:04]}  Qb6 {[%clk 0:00:10]} 33. Bd4 {[%clk 0:00:03]}  Qb3 {[%clk 0:00:10]} 34. Rd3 {[%clk 0:00:01]}  Qb5 {[%clk 0:00:09]} 0-1


[Site "https://www.chess.com"]

[Event "Titled Tuesday Blitz March 29 Early 2022"]
[White "Tsydypov, Zhamsaran"]
[Black "Kucuksari, Kaan"]
[WhiteFideId "4108566"]
[BlackFideId "6380166"]
[WhiteElo "2614"]
[BlackElo "2305"]
[Result "1-0"]
[Round "06"]
[TimeControl "180+1"]
[Date "2022.03.29"]
[WhiteClock "0:01:24"]
[BlackClock "0:00:04"]

1. e4 {[%clk 0:03:00]}  c5 {[%clk 0:02:56]} 2. Nf3 {[%clk 0:03:00]}  Nc6 {[%clk 0:02:57]} 3. Bb5 {[%clk 0:02:59]}  g6 {[%clk 0:02:57]} 4. O-O {[%clk 0:02:58]}  Bg7 {[%clk 0:02:56]} 5. Re1 {[%clk 0:02:59]}  e5 {[%clk 0:02:56]} 6. c3 {[%clk 0:02:58]}  Nge7 {[%clk 0:02:54]} 7. d4 {[%clk 0:02:53]}  cxd4 {[%clk 0:02:53]} 8. cxd4 {[%clk 0:02:53]}  Nxd4 {[%clk 0:02:52]} 9. Nxd4 {[%clk 0:02:53]}  exd4 {[%clk 0:02:52]} 10. Na3 {[%clk 0:02:40]}  O-O {[%clk 0:02:51]} 11. e5 {[%clk 0:02:40]}  Nc6 {[%clk 0:02:49]} 12. Nc4 {[%clk 0:02:39]}  d5 {[%clk 0:02:47]} 13. exd6 {[%clk 0:02:37]}  Be6 {[%clk 0:02:47]} 14. Bf4 {[%clk 0:02:34]}  Rc8 {[%clk 0:02:42]} 15. Rc1 {[%clk 0:02:33]}  a6 {[%clk 0:02:42]} 16. Bxc6 {[%clk 0:02:33]}  Rxc6 {[%clk 0:02:43]} 17. b3 {[%clk 0:02:31]}  b5 {[%clk 0:02:33]} 18. Nd2 {[%clk 0:02:31]}  Rc3 {[%clk 0:02:27]} 19. Ne4 {[%clk 0:02:30]}  b4 {[%clk 0:02:21]} 20. Bg5 {[%clk 0:02:24]}  Qd7 {[%clk 0:02:16]} 21. Qd2 {[%clk 0:02:17]}  Rfc8 {[%clk 0:02:15]} 22. Rcd1 {[%clk 0:02:13]}  Rc2 {[%clk 0:02:07]} 23. Qxb4 {[%clk 0:02:12]}  Bd5 {[%clk 0:02:00]} 24. Qa4 {[%clk 0:01:48]}  Bc6 {[%clk 0:01:49]} 25. Qxa6 {[%clk 0:01:48]}  Ra8 {[%clk 0:01:45]} 26. Qd3 {[%clk 0:01:44]}  Raxa2 {[%clk 0:01:43]} 27. Qh3 {[%clk 0:01:35]}  Qxh3 {[%clk 0:01:02]} 28. gxh3 {[%clk 0:01:32]}  Re2 {[%clk 0:01:00]} 29. Rxe2 {[%clk 0:01:30]}  Rxe2 {[%clk 0:01:01]} 30. Rc1 {[%clk 0:01:29]}  Bd7 {[%clk 0:00:32]} 31. Nc5 {[%clk 0:01:28]}  Bf5 {[%clk 0:00:22]} 32. d7 {[%clk 0:01:27]}  Bxd7 {[%clk 0:00:22]} 33. Nxd7 {[%clk 0:01:28]}  h6 {[%clk 0:00:21]} 34. Rc8+ {[%clk 0:01:27]}  Kh7 {[%clk 0:00:20]} 35. Nf6+ {[%clk 0:01:27]}  Bxf6 {[%clk 0:00:20]} 36. Bxf6 {[%clk 0:01:28]}  g5 {[%clk 0:00:20]} 37. Bxd4 {[%clk 0:01:28]}  Kg6 {[%clk 0:00:21]} 38. b4 {[%clk 0:01:27]}  Re4 {[%clk 0:00:21]} 39. Bc5 {[%clk 0:01:27]}  Re1+ {[%clk 0:00:15]} 40. Kg2 {[%clk 0:01:26]}  Rb1 {[%clk 0:00:16]} 41. Rc6+ {[%clk 0:01:23]}  Kh5 {[%clk 0:00:16]} 42. Bf8 {[%clk 0:01:23]}  g4 {[%clk 0:00:13]} 43. Rxh6+ {[%clk 0:01:23]}  Kg5 {[%clk 0:00:14]} 44. hxg4 {[%clk 0:01:23]}  Kxg4 {[%clk 0:00:13]} 45. Rf6 {[%clk 0:01:23]}  Kg5 {[%clk 0:00:11]} 46. Rxf7 {[%clk 0:01:23]}  Kg6 {[%clk 0:00:12]} 47. Rf3 {[%clk 0:01:23]}  Rb2 {[%clk 0:00:11]} 48. Bc5 {[%clk 0:01:23]}  Kg5 {[%clk 0:00:11]} 49. h3 {[%clk 0:01:23]}  Kh4 {[%clk 0:00:11]} 50. Rf4+ {[%clk 0:01:23]}  Kh5 {[%clk 0:00:12]} 51. Rg4 {[%clk 0:01:23]}  Rb3 {[%clk 0:00:11]} 52. f3 {[%clk 0:01:24]}  Rb2+ {[%clk 0:00:11]} 53. Kg3 {[%clk 0:01:24]}  Rb1 {[%clk 0:00:11]} 54. h4 {[%clk 0:01:24]}  Rb3 {[%clk 0:00:09]} 55. Rg5+ {[%clk 0:01:24]}  Kh6 {[%clk 0:00:09]} 56. Kg4 {[%clk 0:01:25]}  Rb1 {[%clk 0:00:09]} 57. f4 {[%clk 0:01:25]}  Rd1 {[%clk 0:00:08]} 58. h5 {[%clk 0:01:25]}  Rd7 {[%clk 0:00:08]} 59. Rg6+ {[%clk 0:01:25]}  Kh7 {[%clk 0:00:08]} 60. Kg5 {[%clk 0:01:26]}  Rf7 {[%clk 0:00:07]} 61. f5 {[%clk 0:01:26]}  Rd7 {[%clk 0:00:07]} 62. h6 {[%clk 0:01:24]}  Rd5 {[%clk 0:00:05]} 63. Rg7+ {[%clk 0:01:24]}  Kh8 {[%clk 0:00:06]} 64. Rc7 {[%clk 0:01:25]}  Rd8 {[%clk 0:00:04]} 65. b5 {[%clk 0:01:24]} 1-0


[Site "https://www.chess.com"]

[Event "Titled Tuesday Blitz March 29 Early 2022"]
[White "Tsyhanchuk, Stanislav"]
[Black "Avila Pavas, Santiago"]
[WhiteFideId "13505130"]
[BlackFideId "4437128"]
[WhiteElo "2078"]
[BlackElo "2242"]
[Result "0-1"]
[Round "06"]
[TimeControl "180+1"]
[Date "2022.03.29"]
[WhiteClock "0:00:02"]
[BlackClock "0:00:33"]

1. e4 {[%clk 0:03:00]}  Nf6 {[%clk 0:02:29]} 2. e5 {[%clk 0:02:58]}  Nd5 {[%clk 0:02:30]} 3. d4 {[%clk 0:02:58]}  d6 {[%clk 0:02:30]} 4. c4 {[%clk 0:02:58]}  Nb6 {[%clk 0:02:30]} 5. f4 {[%clk 0:02:59]}  g5 {[%clk 0:02:30]} 6. Nc3 {[%clk 0:02:46]}  Bg7 {[%clk 0:02:27]} 7. g3 {[%clk 0:02:29]}  gxf4 {[%clk 0:02:22]} 8. gxf4 {[%clk 0:02:30]}  dxe5 {[%clk 0:02:21]} 9. fxe5 {[%clk 0:02:26]}  Nc6 {[%clk 0:02:20]} 10. Be3 {[%clk 0:02:23]}  Bf5 {[%clk 0:02:20]} 11. Qd2 {[%clk 0:02:08]}  e6 {[%clk 0:02:16]} 12. O-O-O {[%clk 0:02:04]}  Nb4 {[%clk 0:02:15]} 13. a3 {[%clk 0:01:44]}  a5 {[%clk 0:02:15]} 14. axb4 {[%clk 0:01:33]}  axb4 {[%clk 0:02:15]} 15. Nb1 {[%clk 0:01:33]}  Ra1 {[%clk 0:02:15]} 16. Bd3 {[%clk 0:01:32]}  Nxc4 {[%clk 0:02:16]} 17. Qe2 {[%clk 0:01:25]}  Nxe3 {[%clk 0:02:03]} 18. Qxe3 {[%clk 0:01:20]}  h5 {[%clk 0:02:01]} 19. Ne2 {[%clk 0:01:09]}  Bh6 {[%clk 0:01:57]} 20. Nf4 {[%clk 0:01:09]}  Bxd3 {[%clk 0:01:11]} 21. Rxd3 {[%clk 0:01:06]}  Qh4 {[%clk 0:01:11]} 22. Rf1 {[%clk 0:00:59]}  Rg8 {[%clk 0:01:12]} 23. Kc2 {[%clk 0:00:53]}  Rg4 {[%clk 0:01:11]} 24. Qe4 {[%clk 0:00:15]}  Rxf4 {[%clk 0:00:46]} 25. Rxf4 {[%clk 0:00:15]}  Qxf4 {[%clk 0:00:47]} 26. Qxf4 {[%clk 0:00:06]}  Bxf4 {[%clk 0:00:48]} 27. Rh3 {[%clk 0:00:07]}  b6 {[%clk 0:00:40]} 28. Nd2 {[%clk 0:00:03]}  Re1 {[%clk 0:00:34]} 29. Nc4 {[%clk 0:00:02]}  Re2+ {[%clk 0:00:33]} 30. Kb3 {[%clk 0:00:02]}  Rxh2 {[%clk 0:00:34]} 31. Rxh2 {[%clk 0:00:02]}  Bxh2 {[%clk 0:00:34]} 32. Kxb4 {[%clk 0:00:03]}  h4 {[%clk 0:00:35]} 33. Ne3 {[%clk 0:00:03]}  h3 {[%clk 0:00:35]} 34. Ng4 {[%clk 0:00:01]}  Bg3 {[%clk 0:00:35]} 35. Nf6+ {[%clk 0:00:01]}  Ke7 {[%clk 0:00:34]} 36. Ne4 {[%clk 0:00:02]}  Bh4 {[%clk 0:00:33]} 0-1


[Site "https://www.chess.com"]

[Event "Titled Tuesday Blitz March 29 Early 2022"]
[White "Vakhlamov, Igor L."]
[Black "Alinasab, Mobina"]
[WhiteFideId "24126748"]
[BlackFideId "12528897"]
[WhiteElo "2401"]
[BlackElo "2052"]
[Result "1-0"]
[Round "06"]
[TimeControl "180+1"]
[Date "2022.03.29"]
[WhiteClock "0:00:21"]
[BlackClock "0:00:01"]

1. e4 {[%clk 0:03:00]}  c5 {[%clk 0:02:52]} 2. Nf3 {[%clk 0:02:59]}  e6 {[%clk 0:02:48]} 3. Nc3 {[%clk 0:02:59]}  Nc6 {[%clk 0:02:47]} 4. Bb5 {[%clk 0:02:59]}  Nd4 {[%clk 0:02:45]} 5. Bd3 {[%clk 0:02:59]}  d6 {[%clk 0:02:40]} 6. O-O {[%clk 0:02:56]}  Nxf3+ {[%clk 0:02:40]} 7. Qxf3 {[%clk 0:02:57]}  Nf6 {[%clk 0:02:40]} 8. Qg3 {[%clk 0:02:55]}  a6 {[%clk 0:02:36]} 9. b3 {[%clk 0:02:55]}  b5 {[%clk 0:02:36]} 10. Bb2 {[%clk 0:02:55]}  Bb7 {[%clk 0:02:36]} 11. Rae1 {[%clk 0:02:55]}  Qc7 {[%clk 0:02:32]} 12. f4 {[%clk 0:02:34]}  c4 {[%clk 0:02:17]} 13. Be2 {[%clk 0:02:34]}  b4 {[%clk 0:02:01]} 14. e5 {[%clk 0:02:30]}  dxe5 {[%clk 0:01:41]} 15. fxe5 {[%clk 0:02:30]}  bxc3 {[%clk 0:01:37]} 16. Bxc3 {[%clk 0:02:19]}  Ne4 {[%clk 0:01:36]} 17. Qf4 {[%clk 0:02:02]}  Nxc3 {[%clk 0:01:30]} 18. dxc3 {[%clk 0:02:03]}  cxb3 {[%clk 0:01:27]} 19. cxb3 {[%clk 0:02:04]}  Bc5+ {[%clk 0:01:27]} 20. Kh1 {[%clk 0:02:04]}  O-O {[%clk 0:01:27]} 21. Bd3 {[%clk 0:02:04]}  Rad8 {[%clk 0:01:23]} 22. Be4 {[%clk 0:01:59]}  Bxe4 {[%clk 0:01:20]} 23. Rxe4 {[%clk 0:02:00]}  Be7 {[%clk 0:00:44]} 24. Rc4 {[%clk 0:01:54]}  Qb7 {[%clk 0:00:44]} 25. h3 {[%clk 0:01:48]}  Rd5 {[%clk 0:00:42]} 26. Qg3 {[%clk 0:01:45]}  Qb8 {[%clk 0:00:36]} 27. Re1 {[%clk 0:01:41]}  f6 {[%clk 0:00:30]} 28. Rg4 {[%clk 0:01:38]}  Rf7 {[%clk 0:00:26]} 29. Rge4 {[%clk 0:00:58]}  Rxe5 {[%clk 0:00:23]} 30. Rxe5 {[%clk 0:00:59]}  fxe5 {[%clk 0:00:23]} 31. Qd3 {[%clk 0:01:00]}  Qd6 {[%clk 0:00:14]} 32. Qe2 {[%clk 0:00:58]}  g6 {[%clk 0:00:14]} 33. Rd1 {[%clk 0:00:58]}  Qc7 {[%clk 0:00:13]} 34. Qxa6 {[%clk 0:00:58]}  Qxc3 {[%clk 0:00:12]} 35. Qxe6 {[%clk 0:00:57]}  Kg7 {[%clk 0:00:12]} 36. a4 {[%clk 0:00:57]}  Bh4 {[%clk 0:00:10]} 37. Qd5 {[%clk 0:00:51]}  Bg3 {[%clk 0:00:09]} 38. a5 {[%clk 0:00:51]}  Bf4 {[%clk 0:00:07]} 39. Qd3 {[%clk 0:00:28]}  Qxd3 {[%clk 0:00:06]} 40. Rxd3 {[%clk 0:00:29]}  e4 {[%clk 0:00:06]} 41. Rd4 {[%clk 0:00:28]}  e3 {[%clk 0:00:03]} 42. Re4 {[%clk 0:00:28]}  Bg5 {[%clk 0:00:01]} 43. g3 {[%clk 0:00:22]}  Ra7 {[%clk 0:00:01]} 44. h4 {[%clk 0:00:20]}  Bf6 {[%clk 0:00:02]} 45. b4 {[%clk 0:00:21]}  Kf7 {[%clk 0:00:02]} 46. Rxe3 {[%clk 0:00:21]}  Be7 {[%clk 0:00:02]} 47. Re4 {[%clk 0:00:21]}  Rb7 {[%clk 0:00:03]} 48. a6 {[%clk 0:00:21]}  Rb6 {[%clk 0:00:03]} 49. Rf4+ {[%clk 0:00:21]}  Ke6 {[%clk 0:00:01]} 50. Re4+ {[%clk 0:00:21]}  Kd7 {[%clk 0:00:01]} 51. b5 {[%clk 0:00:21]} 1-0


[Site "https://www.chess.com"]